Cogmind - Beta 16.1 @@@ ROGUE MODE // 2026.05.03 @ 10:44:22 Player: Thqwib-Linux Result: Self-destructed Performance ------------- Evolutions (6) 3000 Regions Visited (11) 2200 Robots Destroyed (146) 730 Value Destroyed (4160) 4160 Prototype IDs (13) 260 Alien Tech Used (0) 0 Bonus (2251) 2251 TOTAL SCORE: 12601 Bonus ------- High Alert Combat Kills 104 Follower Combat Kills 1519 Registered with UFD 300 Met Optimus in HQ 500 Friendly Fire -172 Cogmind --------- Core Integrity 583/1150 Matter 297/300 Energy 40/100 System Corruption 20% Temperature Cool (2) Movement Flying (34) Location -4/Upper Caves Parts ------- > --- POWER (1) -------- (None) > --- PROPULSION (6) --- VTOL Module Nuclear Pulse Array > --- UTILITY (10) ----- Enhanced Optical Array Advanced Signal Interpreter Advanced Melee Analysis Suite Hacking Suite Hacking Suite > --- WEAPON (2) ------- Companion Sword > --- INVENTORY (5) ---- Myomer Leg Advanced Sensor Array Hacking Suite Long-range Missile Launcher Plasma Cutter Peak State ------------ > --- POWER ------------ Neutrino Core > --- PROPULSION ------- Flexi-carbon Leg Improved VSS Leg Improved VSS Leg Myomer Leg Myomer Leg Advanced VSS Leg > --- UTILITY ---------- Medium Storage Unit Enhanced Optical Array Advanced Signal Interpreter Advanced Melee Analysis Suite Improved Phase Shifter Improved Medium Armor Plating Medium Regenerative Plating Hacking Suite Hacking Suite Improved Hacking Suite > --- WEAPON ----------- Companion Sword Phasing Sabre > --- INVENTORY -------- Nuclear Pulse Array Advanced Coolant Injector Advanced Sensor Array Graphene Brace Hacking Suite Authchip [Propulsion] Heavy Plasma Cannon Long-range Missile Launcher Plasma Cutter [Rating: 104] Favorites ----------- Power Heavy Ion Engine Engine Heavy Ion Engine Power Core Neutrino Core Reactor Light Antimatter Reactor Propulsion Flexi-carbon Leg Treads Improved Treads Leg Flexi-carbon Leg Wheel Compact Wheel Hover Unit Antigrav System Flight Unit VTOL Module Utility Hacking Suite Device Heat Sink Storage Large Storage Unit Processor Improved Targeting Computer Hackware Hacking Suite Protection Light Armor Plating Weapon Companion Sword Energy Gun Small Laser Energy Cannon Ion Burst Cannon Ballistic Gun Improved Assault Rifle Ballistic Cannon Bore Cannon Launcher Grenade Launcher Special Weapon Plasma Cutter Slashing Weapon Companion Sword Build | -11 -10 -10 -9 -9 -9 -9 -6 -6 -5 -4 -4 ------- Run | Yrd Mat Min Mat Sto Rec Scr Fac Ext Fac Fac Upp Slots Evolved 12 | . . . 2 . . . 6 . 2 2 . Power . | . . . . . . . . . . . . Propulsion 4 | . . . 1 . . . 3 . . . . Utility 8 | . . . 1 . . . 3 . 2 2 . Weapon . | . . . . . . . . . . . . Parts Attached 154 | 3 13 5 15 19 2 3 15 34 8 34 3 Power 21 | . 2 1 2 . . . 2 2 2 9 1 Engine 8 | . 2 1 2 . . . . 1 . 1 1 Core 11 | . . . . . . . 2 1 2 6 . Reactor 2 | . . . . . . . . . . 2 . Propulsion 66 | 2 4 1 6 6 1 1 6 22 3 12 2 Treads 12 | 1 2 . 4 5 . . . . . . . Leg 34 | . . . . . . . . 20 3 11 . Wheel 9 | 1 2 1 2 1 1 1 . . . . . Hover 1 | . . . . . . . . . . 1 . Flight 10 | . . . . . . . 6 2 . . 2 Utility 46 | 1 4 . 4 6 1 1 7 7 3 12 . Device 18 | 1 3 . 1 1 . . 2 2 2 6 . Storage 4 | . 1 . . . 1 1 . 1 . . . Processor 6 | . . . 1 1 . . 2 1 1 . . Hackware 4 | . . . . . . . 3 . . 1 . Protection 14 | . . . 2 4 . . . 3 . 5 . Artifact . | . . . . . . . . . . . . Weapon 21 | . 3 3 3 7 . 1 . 3 . 1 . Energy Gun 5 | . 2 . 1 2 . . . . . . . Energy Cannon 3 | . . . . 2 . . . . . 1 . Ballistic Gun 7 | . . 3 2 2 . . . . . . . Ballistic Cannon 1 | . . . . . . . . 1 . . . Launcher 2 | . 1 . . . . . . 1 . . . Special Weapon 1 | . . . . 1 . . . . . . . Impact Weapon . | . . . . . . . . . . . . Slashing Weapon 2 | . . . . . . 1 . 1 . . . Piercing Weapon . | . . . . . . . . . . . . Special Melee Weapon . | . . . . . . . . . . . . Unidentified Prototypes 9 | . . . 1 4 . 1 . 1 1 1 . Corrupted Parts 2 | . . . . . . . . . . 1 1 System Corruption 11 | . . . . . . . . . . 1 10 Parts Lost 46 | . 2 . 1 2 . . . 10 8 14 9 Power 8 | . . . 1 . . . . 2 1 2 2 Propulsion 26 | . 1 . . . . . . 7 6 7 5 Utility 11 | . . . . 2 . . . 1 1 5 2 Weapon 1 | . 1 . . . . . . . . . . Highest Loss Streak 7 | . 1 . 1 1 . . . 5 4 7 7 To Critical Strikes . | . . . . . . . . . . . . Average Backups 12 | 3 11 15 14 14 16 18 8 6 7 8 8 Power . | 1 1 . . . 1 1 . . . . . Propulsion 3 | 2 6 8 7 6 6 5 . . . . . Utility 4 | . 2 4 3 4 5 6 4 3 4 4 4 Weapon 2 | . . 2 3 3 3 3 1 1 2 2 2 Tool/Special . | . . . . . . . . . . . . Unused Backups 35 | 4 7 3 1 4 . 4 5 . 1 1 5 Power 3 | . 1 1 . . . . . . . 1 . Propulsion 13 | 4 4 2 . 1 . 2 . . . . . Utility 10 | . 1 . . . . 2 3 . . . 4 Weapon 8 | . 1 . 1 3 . . 1 . 1 . 1 Tool/Special 1 | . . . . . . . 1 . . . . Average Slot Usage (%) 95 | . 98 100 99 99 100 99 84 95 92 86 80 Engine 7 | . 14 14 11 11 11 11 3 2 . . . Core 1 | . . . . . . . 2 3 4 3 3 Treads 9 | . 15 14 21 22 16 11 . . . . . Leg 10 | . . . . . . . . 34 30 21 21 Wheel 8 | . 12 14 11 11 16 22 . . . . . Flight 2 | . . . . . . . 37 3 . . 2 Device 4 | . 14 14 4 . . . 2 3 3 5 7 Storage 8 | . 14 14 11 11 11 11 3 3 5 5 5 Processor 9 | . . . 6 4 11 11 9 13 16 15 15 Hackware 5 | . . . . . . . 8 13 11 14 10 Protection 7 | . . . 10 17 11 11 6 4 5 7 2 Energy Gun 4 | . 27 17 2 5 . . . . . . . Energy Cannon 2 | . . . . 3 11 9 . . . . . Ballistic Gun 6 | . . 10 19 13 11 11 . . . . . Slashing Weapon 4 | . . . . . . 1 6 10 11 9 9 Peak Build Rating 104 | 7 8 8 19 25 24 24 41 68 80 104 97 Average Rating 38 | 6 7 8 16 20 23 23 33 59 73 88 81 On Entrance 32 | 6 7 8 8 19 24 23 24 41 68 63 93 Avg Prop Armor Cover (%) 10 | 13 13 14 15 13 12 9 3 6 9 8 11 Naked Turns . | . . . . . . . . . . . . Heaviest Build 62 | 12 31 30 37 46 62 62 58 36 37 55 44 Greatest Support 120 | 10 40 16 16 23 32 32 32 115 105 120 50 Greatest Overweight (x) 3 | 1 2 1 2 2 3 1 3 . 1 1 . Average Overweight (x) . | 1 1 1 1 1 1 1 . . . . . Largest Inventory Capacity 20 | 8 15 15 15 15 20 20 20 10 10 10 10 Average Capacity 13 | 8 14 15 15 15 17 19 13 7 10 10 9 Most Carried 20 | 5 15 15 15 15 18 20 20 10 10 10 10 Average Carried 12 | 3 11 14 14 14 16 18 7 6 7 8 9 Final Capacity 20 | 8 15 15 15 15 20 20 5 10 10 10 5 Final Carried 20 | 3 15 15 15 15 17 20 5 10 7 10 5 Scrap Suit Usage (%) 3 | . . . . . . . . . . 6 83 Parts Cannibalized 5 | . . . . . . . . . . 3 2 Class Distribution -------------------- 57% | Mutant 16% | Scavenger-Gladiator 14% | Scavenger-Mutant 5% | Hacker-Gladiator Dominant Class ---------------- Mutant | -10/Materials Mutant | -10/Mines Mutant | -9/Materials Mutant | -9/Storage Mutant | -9/Recycling Mutant | -9/Scraptown Mutant | -6/Factory Scavenger-Mutant | -6/Extension Scavenger-Gladiator | -5/Factory Scavenger-Gladiator | -4/Factory Scavenger-Gladiator | -4/Upper Caves Resources | -11 -10 -10 -9 -9 -9 -9 -6 -6 -5 -4 -4 ----------- Run | Yrd Mat Min Mat Sto Rec Scr Fac Ext Fac Fac Upp Matter Collected 2816 | 230 238 150 375 551 45 40 150 443 95 457 42 Remotely . | . . . . . . . . . . . . Salvage Created 6891 | 120 920 238 591 1098 229 . 556 1424 370 1225 120 Parts 350 | 4 54 24 28 57 9 . 18 75 19 54 8 Haulers Intercepted 15 | . 1 . 1 6 . . 2 3 1 1 . Recyclers Shooed 8 | . 3 . . . . . 4 1 . . . Parts Field Recycled . | . . . . . . . . . . . . Retrieved Matter . | . . . . . . . . . . . . Parts Self-Destructed 6 | . . . . . . . . . . . 6 Prevented 3 | . . . . . . . . . . . 3 Parts Restored . | . . . . . . . . . . . . Kills | -11 -10 -10 -9 -9 -9 -9 -6 -6 -5 -4 -4 ------- Run | Yrd Mat Min Mat Sto Rec Scr Fac Ext Fac Fac Upp Combat Hostiles Destroyed 94 | . 20 15 6 15 3 . . 13 3 14 5 Melee 31 | . . . . . . . . 9 3 14 5 Guns 38 | . 16 9 6 7 . . . . . . . Cannons 11 | . . . . 7 3 . . 1 . . . AOE 13 | . 3 6 . 1 . . . 3 . . . Classes Destroyed 16 | 2 7 . . 3 . . . 2 . 2 . Worker 7 | . 1 1 1 2 . . . 1 1 . . Builder 5 | . 1 . . 1 . . . 3 . . . Tunneler 1 | 1 . . . . . . . . . . . Hauler 15 | . 1 . 1 6 . . 2 3 1 1 . Recycler 14 | 1 3 . 2 . 1 . 3 3 . 1 . Operator 3 | . 1 . . . . . . 2 . . . Watcher 6 | . 1 . 2 1 . . . . 2 . . Swarmer 29 | . 9 12 . . . . . 3 . . 5 Grunt 33 | . 11 3 6 7 . . . 3 . 3 . Brawler 2 | . . . . 2 . . . . . . . Duelist 2 | . . . . 2 . . . . . . . Sentry 14 | . . . . 4 3 . . 5 . 2 . Specialist 3 | . . . . . . . . . . 3 . Hunter 6 | . . . . . . . . 1 3 2 . Programmer 4 | . . . . . . . . . . 4 . Behemoth 1 | . . . . . . . . 1 . . . Thug 1 | . . . 1 . . . . . . . . Best Kill Streak 9 | 2 6 7 9 3 1 . 1 4 2 2 4 Combat Bots Only 6 | . 4 6 5 3 1 . . 3 2 2 4 Max Kills in Single Turn 6 | 1 6 3 2 1 1 . 1 3 1 1 1 Gunslinging 1 | . . . 1 . . . . . . . . Exploded 3 | . 3 3 . 1 . . . 2 . . . Melee 1 | . . . . . . . . 1 1 1 1 Uniques/NPCs Destroyed . | . . . . . . . . . . . . Combat | -11 -10 -10 -9 -9 -9 -9 -6 -6 -5 -4 -4 -------- Run | Yrd Mat Min Mat Sto Rec Scr Fac Ext Fac Fac Upp Hostile Shots Fired 1064 | . 93 31 42 40 . . . 319 98 355 86 Missed 340 | . 27 11 8 7 . . . 107 33 123 24 Deflected 6 | . . . . . . . . . . 6 . Hits 724 | . 66 20 34 33 . . . 212 65 232 62 Melee 4 | . . . . 4 . . . . . . . Projectile 720 | . 66 20 34 29 . . . 212 65 232 62 AOE 2 | . . . . . . . . . 1 1 . Critical Strikes 13 | . . . 3 1 . . . 1 . 5 3 Part Disruptions 3 | . . . . . . . . . . 3 . Damage Taken 10119 | . 663 151 454 642 . . . 2283 1120 3827 979 Core 1533 | . 177 46 52 133 . . . 407 151 474 93 Absorbed by Shields 38 | . . . . . . . . 38 . . . Regen/Repaired (Parts) 1329 | . 137 . . . . . . 263 302 620 7 Core Remaining (%) 59 | 100 . 10 . . . 53 . 52 84 . . Volleys Fired 221 | 5 81 18 37 62 5 . . 7 . 6 . Largest 2 | 2 2 2 2 2 2 . . 1 . 1 . Hottest 123 | 90 90 80 76 123 123 . . 48 . 90 . Shots Fired 408 | 10 149 30 74 122 10 . . 7 . 6 . Gun 365 | 10 145 24 74 107 5 . . . . . . Cannon 28 | . . . . 13 5 . . 4 . 6 . Launcher 15 | . 4 6 . 2 . . . 3 . . . Special . | . . . . . . . . . . . . Kinetic 152 | . . 2 69 72 5 . . 4 . . . Thermal 241 | 10 145 22 5 48 5 . . . . 6 . Explosive 15 | . 4 6 . 2 . . . 3 . . . Electromagnetic . | . . . . . . . . . . . . Robot Hit Streak 23 | 4 19 3 14 23 5 . . 9 . . . Robot Miss Streak 5 | 2 4 5 2 4 2 . . . . . . Penetration Max 1 | . . . . . . . . 1 . . . Secondary Targets 5 | . 1 1 2 1 . . . . . . . Max Gunslinging Chain 1 | . 1 1 1 1 . . . . . . . Shots Hit Robots 439 | 7 104 13 54 79 6 . 13 61 22 71 9 Core Hits 197 | 3 44 22 18 38 5 . 5 24 10 25 3 Critical Kills 1 | . . . . . . . . 1 . . . Critical Parts Destroyed 1 | . . . . . . . . 1 . . . Critical Strikes 24 | 2 . . . 4 . . . 5 2 11 . Burn 6 | 2 . . . 4 . . . . . . . Destroy 4 | . . . . . . . . 4 . . . Sever 6 | . . . . . . . . 1 2 3 . Melee Attacks 232 | . . . . . . . 20 67 27 97 21 Impact . | . . . . . . . . . . . . Slashing 232 | . . . . . . . 20 67 27 97 21 Piercing . | . . . . . . . . . . . . Sneak Attacks 28 | . . . . . . . 7 17 1 3 . Combat Hostiles . | . . . . . . . . . . . . Follow-up Attacks 27 | . . . . . . . . 8 5 12 2 Damage Inflicted 13362 | 88 1400 522 815 1844 157 . 801 3248 977 3129 381 Guns 3424 | 88 1190 127 815 1190 14 . . . . . . Cannons 688 | . . . . 457 143 . . 88 . . . Explosions 1053 | . 207 395 . 197 . . . 254 . . . Melee 8180 | . . . . . . . 801 2892 977 3129 381 Ramming 17 | . 3 . . . . . . 14 . . . Kinetic 1612 | . . 18 757 735 14 . . 88 . . . Thermal 2500 | 88 1190 109 58 912 143 . . . . . . Explosive 1053 | . 207 395 . 197 . . . 254 . . . Electromagnetic . | . . . . . . . . . . . . Impact . | . . . . . . . . . . . . Slashing 8180 | . . . . . . . 801 2892 977 3129 381 Piercing . | . . . . . . . . . . . . Highest Corruption 20 | . . . . . . . . . . 10 20 Average Corruption 8 | . . . . . . . . . . 6 10 Corruption Purged . | . . . . . . . . . . . . Corruption Blocked . | . . . . . . . . . . . . Effects 27 | . . . . . . . . . . 17 10 Message Errors 7 | . . . . . . . . . . 6 1 Matter Fused 7 | . . . . . . . . . . 5 2 Heat Flow Errors 4 | . . . . . . . . . . 1 3 Energy Discharges 3 | . . . . . . . . . . 3 . Data Loss (minor) 2 | . . . . . . . . . . 1 1 Data Loss (major) 1 | . . . . . . . . . . . 1 Alerts 1 | . . . . . . . . . . 1 . Misdirections 2 | . . . . . . . . . . . 2 Overload Shots . | . . . . . . . . . . . . Overflow Damage 830 | . 20 9 . . . . 203 427 38 74 59 Projectiles . | . . . . . . . . . . . . Explosions 44 | . 20 9 . . . . . 15 . . . Melee 786 | . . . . . . . 203 412 38 74 59 Knockbacks . | . . . . . . . . . . . . Impact . | . . . . . . . . . . . . Kinetic . | . . . . . . . . . . . . Secondary . | . . . . . . . . . . . . Self-Inflicted Damage 138 | . . . . 80 . . . 58 . . . Shots 3 | . . . . 1 . . . 2 . . . Rammed 1 | . 1 . . . . . . . . . . Targets Rammed 3 | . 1 . . . . . . 2 . . . Kicked 2 | . . . . . . . . 2 . . . Crushed . | . . . . . . . . . . . . Highest Temperature 310 | 120 310 . 117 272 66 . 4 290 . 136 225 Average Temperature 67 | 54 86 . 40 61 36 . 4 96 . 61 109 Received Heat Transfer 2074 | . 282 . 285 195 . . . 703 12 585 12 Effects 2 | . 1 . . 1 . . . . . . . Energy Bleed 2 | . 1 . . 1 . . . . . . . Siege Activations . | . . . . . . . . . . . . Martial Activations . | . . . . . . . . . . . . Shielding Activations 2 | . . . . . . . . . . 2 . Total Turns 19 | . . . . . . . . . . 19 . Longest Duration 10 | . . . . . . . . . . 10 . Robots Disrupted . | . . . . . . . . . . . . Combat Hostiles . | . . . . . . . . . . . . Robots Corrupted . | . . . . . . . . . . . . Combat Hostiles . | . . . . . . . . . . . . Parts Fried . | . . . . . . . . . . . . Impact Corruptions . | . . . . . . . . . . . . Robots Melted 1 | . 1 . . . . . . . . . . Combat Hostiles 1 | . 1 . . . . . . . . . . Parts Melted 10 | . 9 . . 1 . . . . . . . Heat Transferred 5808 | 371 3019 250 148 1845 175 . . . . . . Parts Sabotaged . | . . . . . . . . . . . . Parts Stolen . | . . . . . . . . . . . . Parts Stripped . | . . . . . . . . . . . . Power Chain Reactions . | . . . . . . . . . . . . Alert | -11 -10 -10 -9 -9 -9 -9 -6 -6 -5 -4 -4 ------- Run | Yrd Mat Min Mat Sto Rec Scr Fac Ext Fac Fac Upp Maximum Alert Level 2 | . 1 1 1 2 1 . . . . . . Low Security (%) 68 | 100 58 19 80 10 63 . 100 100 100 100 . Level 1 18 | . 41 80 19 8 36 . . . . . . Level 2 13 | . . . . 80 . . . . . . . Level 3 . | . . . . . . . . . . . . Level 4 . | . . . . . . . . . . . . Level 5 . | . . . . . . . . . . . . High Security . | . . . . . . . . . . . . Max Security . | . . . . . . . . . . . . Peak Influence 637 | 5 359 389 286 637 269 . 46 141 58 195 . Initial 228 | . . 129 101 110 228 . . 11 58 18 . Average 174 | 1 179 285 176 478 191 . 8 28 13 67 . Influence Increases 5215 | 10 699 450 497 1191 231 . 95 799 219 809 215 Destroy 0b10 Robot/C 2740 | . 400 320 300 640 60 . . 460 80 380 100 Destroy 0b10 Robot/NC 275 | 10 40 5 30 65 5 . 25 65 20 10 . Destroy Leader 666 | . 84 60 86 214 . . 4 60 36 112 10 Allied During Kill 277 | . . 28 15 55 . . . 118 6 55 . Successful Hack 117 | . 11 . 2 21 15 . 2 2 3 61 . Select Force Hacks 300 | . 60 . 30 60 150 . . . . . . Disable Machine 120 | . . . . 60 . . . 45 . 15 . Destroy Structure 180 | . 29 22 4 31 1 . 4 19 14 56 . Partial Spotted 75 | . . . . 15 . . 30 15 . 15 . Lose Combat Pursuer 465 | . 75 15 30 30 . . 30 15 60 105 105 Influence Decreases 5126 | 10 366 522 496 868 699 117 70 703 302 697 276 Entered New Map 1143 | . . 204 160 152 357 117 . 14 63 20 56 Time Decay 3042 | 10 346 318 326 506 342 . 70 385 167 442 130 Lost Part 385 | . 20 . 10 20 . . . 100 35 110 90 Lost Ally 378 | . . . . 40 . . . 204 34 100 . Purge Threat 178 | . . . . 150 . . . . 3 25 . Squads Dispatched 44 | . 5 . 3 13 . . 2 5 5 11 . Investigation 17 | . 3 . 2 5 . . 1 2 2 2 . Extermination 3 | . . . . . . . . . 1 2 . Reinforcement 18 | . 2 . 1 2 . . 1 3 2 7 . Assault 3 | . . . . 3 . . . . . . . Garrison 3 | . . . . 3 . . . . . . . Intercept . | . . . . . . . . . . . . Searches Triggered . | . . . . . . . . . . . . Construction Impeded 2 | . . . . . . . . 1 . 1 . Haulers Reinforced . | . . . . . . . . . . . . Active Scanning Responses . | . . . . . . . . . . . . Cargo Convoy Interrupts . | . . . . . . . . . . . . Stealth | -11 -10 -10 -9 -9 -9 -9 -6 -6 -5 -4 -4 --------- Run | Yrd Mat Min Mat Sto Rec Scr Fac Ext Fac Fac Upp Distress Signals 8 | . . . 2 2 . . . 3 1 . . Communications Jammed . | . . . . . . . . . . . . Distress Signals . | . . . . . . . . . . . . Times Spotted 202 | . 27 16 19 43 . . 4 39 13 25 16 Peak Tracking Total 9 | . 8 5 5 6 . . 2 9 3 5 6 Tactical Retreats 22 | . 2 1 2 2 . . 2 1 3 4 5 Traps | -11 -10 -10 -9 -9 -9 -9 -6 -6 -5 -4 -4 ------- Run | Yrd Mat Min Mat Sto Rec Scr Fac Ext Fac Fac Upp Traps Triggered 7 | . 2 . 1 1 . . . 1 . 2 . Indirectly . | . . . . . . . . . . . . Trap Hack Attempts . | . . . . . . . . . . . . Triggered . | . . . . . . . . . . . . Disarmed . | . . . . . . . . . . . . Reprogrammed . | . . . . . . . . . . . . Reused . | . . . . . . . . . . . . Traps Extracted . | . . . . . . . . . . . . Installed . | . . . . . . . . . . . . Triggered . | . . . . . . . . . . . . Machines | -11 -10 -10 -9 -9 -9 -9 -6 -6 -5 -4 -4 ---------- Run | Yrd Mat Min Mat Sto Rec Scr Fac Ext Fac Fac Upp Machines Disabled 8 | . . . . 4 . . . 3 . 1 . Max in Single Turn 2 | . . . . 1 . . . 2 . 1 . Garrison Access 2 | . . . . 1 . . . . 1 . . Energy Cycler 1 | . . . . . . . . 1 . . . Machines Repaired . | . . . . . . . . . . . . Machines Dismantled 2 | . . . . 2 . . . . . . . Machines Sabotaged . | . . . . . . . . . . . . Overloaded Fab Kills . | . . . . . . . . . . . . Hacking | -11 -10 -10 -9 -9 -9 -9 -6 -6 -5 -4 -4 --------- Run | Yrd Mat Min Mat Sto Rec Scr Fac Ext Fac Fac Upp Machines Accessed 52 | . 5 . 3 10 10 2 4 6 5 7 . Terminals 27 | . 2 . 1 6 5 . 3 4 2 4 . Fabricators 1 | . . . . . . . . . . 1 . Repair Stations 5 | . 1 . . 1 . . . 1 1 1 . Recycling Units 14 | . 2 . 1 2 5 . 1 1 1 1 . Scanalyzers 1 | . . . 1 . . . . . . . . Garrison Access 2 | . . . . 1 . . . . 1 . . Total Hacks 121 | . 18 . 4 25 22 2 6 12 10 22 . Successful 72 | . 9 . 2 12 13 2 5 9 5 15 . Failed 48 | . 9 . 1 13 9 . 1 3 5 7 . Catastrophic 4 | . . . . 3 . . . . 1 . . Database Lockouts 1 | . . . 1 . . . . . . . . Manual 72 | . 11 . 1 11 17 . 4 7 7 14 . Terminals 79 | . 9 . 1 18 16 . 5 8 6 16 . Fabricators 2 | . . . . . . . . . . 2 . Repair Stations 15 | . 5 . . 3 . . . 3 1 3 . Recycling Units 18 | . 4 . 1 3 6 . 1 1 1 1 . Scanalyzers 2 | . . . 2 . . . . . . . . Garrison Access 3 | . . . . 1 . . . . 2 . . Terminal Hacks 26 | . 1 . . 5 4 2 2 3 1 8 . Record 1 | . . . . . . 1 . . . . . Part Schematic 2 | . . . . . . . . . . 2 . Prototype ID Bank 2 | . 1 . . . 1 . . . . . . Open Door 4 | . . . . 1 . 1 1 1 . . . Branch Access Points 1 | . . . . . . . . . . 1 . Terminal Index 1 | . . . . . . . . . . 1 . Recycling Unit Index 2 | . . . . . . . 1 . . 1 . Alert Level 2 | . . . . . 2 . . . . . . Unreport Threat 4 | . . . . 1 . . . . 1 2 . Locate Traps 1 | . . . . 1 . . . . . . . Assault Status 1 | . . . . 1 . . . . . . . Recall Investigation 1 | . . . . . . . . 1 . . . Zone Layout 4 | . . . . 1 1 . . 1 . 1 . Fabricator Hacks 1 | . . . . . . . . . . 1 . Build 1 | . . . . . . . . . . 1 . Repair Station Hacks 8 | . 4 . . 1 . . . 2 . 1 . Scan Component 5 | . 2 . . 1 . . . 1 . 1 . Repair 3 | . 2 . . . . . . 1 . . . Recycling Unit Hacks . | . . . . . . . . . . . . Scanalyzer 1 | . . . 1 . . . . . . . . Retrieve Study 1 | . . . 1 . . . . . . . . Garrison Access Hacks 2 | . . . . 1 . . . . 1 . . Seal Access 2 | . . . . 1 . . . . 1 . . Unauthorized Hacks 34 | . 4 . 1 5 9 . 3 4 3 5 . Terminals 15 | . 2 . . 2 4 . 2 2 1 2 . Botnet 15 | . 2 . . 2 4 . 2 2 1 2 . Fabricators 1 | . . . . . . . . . . 1 . Prioritize 1 | . . . . . . . . . . 1 . Repair Stations 3 | . . . . . . . . 1 1 1 . Patch 3 | . . . . . . . . 1 1 1 . Recycling Units 15 | . 2 . 1 3 5 . 1 1 1 1 . Monitor 1 | . . . . 1 . . . . . . . Tunnel 10 | . 2 . 1 2 5 . . . . . . Fedlink 3 | . . . . . . . 1 1 1 . . Scrapoids 1 | . . . . . . . . . . 1 . Scanalyzers . | . . . . . . . . . . . . Garrison Access . | . . . . . . . . . . . . Data Cores Recovered . | . . . . . . . . . . . . Used . | . . . . . . . . . . . . Hacking Detections 27 | . 4 . 1 6 2 . 2 4 2 6 . Full Trace Events 1 | . . . . 1 . . . . . . . Feedback Events . | . . . . . . . . . . . . Feedback Blocked . | . . . . . . . . . . . . Robot Schematics Acquired . | . . . . . . . . . . . . Robots Built . | . . . . . . . . . . . . Authchips . | . . . . . . . . . . . . Time . | . . . . . . . . . . . . Total Robot Build Rating . | . . . . . . . . . . . . Part Schematics Acquired 2 | . . . . . . . . . . 2 . Parts Built 1 | . . . . . . . . . . 1 . Authchips . | . . . . . . . . . . . . Time 46 | . . . . . . . . . . 46 . Total Part Build Rating 9 | . . . . . . . . . . 9 . Part Studies Acquired 1 | . . . 1 . . . . . . . . Parts Repaired 3 | . 2 . . . . . . 1 . . . Time 102 | . 52 . . . . . . 50 . . . Parts Recycled . | . . . . . . . . . . . . Recycled Matter . | . . . . . . . . . . . . Retrieved Matter . | . . . . . . . . . . . . Retrieved Components . | . . . . . . . . . . . . Parts Scanalyzed . | . . . . . . . . . . . . Part Schematics Acquired . | . . . . . . . . . . . . Parts Damaged . | . . . . . . . . . . . . Bothacking | -11 -10 -10 -9 -9 -9 -9 -6 -6 -5 -4 -4 ------------ Run | Yrd Mat Min Mat Sto Rec Scr Fac Ext Fac Fac Upp Used RIF Installer . | . . . . . . . . . . . . Robots Hacked . | . . . . . . . . . . . . Non-combat . | . . . . . . . . . . . . Combat . | . . . . . . . . . . . . Robot Hacks Applied . | . . . . . . . . . . . . Relay Couplers Released . | . . . . . . . . . . . . Fabnet Peak Effective % . | . . . . . . . . . . . . Robots Rewired 17 | . . . . . . . . 17 . . . Allies Hacked . | . . . . . . . . . . . . Hacks Repelled . | . . . . . . . . . . . . Allies | -11 -10 -10 -9 -9 -9 -9 -6 -6 -5 -4 -4 -------- Run | Yrd Mat Min Mat Sto Rec Scr Fac Ext Fac Fac Upp Total Allies 32 | . . 2 . 2 . . . 23 . 5 . Largest Group 11 | . . 2 1 2 . . . 11 2 5 . Highest-Rated Group 292 | . . 48 31 62 . . . 292 64 235 . Highest-Rated Ally 47 | . . 31 31 31 . . . 39 39 47 . Initial UFD Resources 53 | . . . . . . . 23 33 41 53 50 Total Orders . | . . . . . . . . . . . . Ally Attacks 272 | . . 14 25 55 . . . 131 7 40 . Total Damage 5051 | . . 188 459 898 . . . 2484 143 879 . Kills 46 | . . 1 9 19 . . . 11 1 5 . Allies Corrupted . | . . . . . . . . . . . . Allies Melted 2 | . . . . . . . . 2 . . . Intel | -11 -10 -10 -9 -9 -9 -9 -6 -6 -5 -4 -4 ------- Run | Yrd Mat Min Mat Sto Rec Scr Fac Ext Fac Fac Upp Active Infowar (turns) 3125 | 15 349 . . . . . . 525 564 1404 268 Optics 2761 | . . . . . . . . 525 564 1404 268 Sensors 964 | . . . . . . . . . 347 414 203 Seismic 364 | 15 349 . . . . . . . . . . Robot Analysis Total . | . . . . . . . . . . . . Derelict Logs Recovered 2 | . . 1 . . . . . . . . 1 Drone Launches . | . . . . . . . . . . . . Drone Recoveries . | . . . . . . . . . . . . Exploration | -11 -10 -10 -9 -9 -9 -9 -6 -6 -5 -4 -4 ------------- Run | Yrd Mat Min Mat Sto Rec Scr Fac Ext Fac Fac Upp Turns Passed 10012 | 52 969 704 722 1379 771 1394 389 1396 564 1404 268 Spaces Moved 7195 | 33 543 556 449 742 613 1193 663 986 391 790 236 Core . | . . . . . . . . . . . . Treads 95 | . 14 . . 81 . . . . . . . Legs 2085 | . . . . . . . . 782 391 790 122 Wheels 4040 | 33 529 556 449 661 613 1193 6 . . . . Hover . | . . . . . . . . . . . . Flight 975 | . . . . . . . 657 204 . . 114 Fastest Speed 22 | 95 95 115 115 130 115 115 22 25 120 100 34 Average Speed 110 | 95 114 115 129 142 122 115 43 101 120 122 78 Slowest Speed 240 | 95 160 115 130 240 145 115 145 120 190 190 120 Overloaded Moves . | . . . . . . . . . . . . Propulsion Burnouts . | . . . . . . . . . . . . Robots Hopped 2 | . . . . . . . 1 1 . . . Potential Cave-ins . | . . . . . . . . . . . . Cave-ins Triggered . | . . . . . . . . . . . . Exploration Rate (%) 51 | 3 59 97 31 89 94 83 16 93 11 13 27 Regions Visited 11 Branch Regions 6 Pre-discovered Areas 11 | . 2 . 1 2 5 . . 1 . . . Known Exits Taken 5 | . . . 1 . . . 1 1 1 1 . Unknown Exits Taken 6 | 1 1 1 . 1 1 1 . . . . . Scrap Searched 7 | . . 1 . . . 5 . . . . 1 Spaces Dug 45 | . 23 . . . . . 4 . 3 14 1 Terrain Destroyed 142 | . 28 45 . 31 . . 4 16 3 14 1 Melee 16 | . . . . . . . 4 . 3 8 1 Projectile 6 | . . . . . . . . . . 6 . AOE 120 | . 28 45 . 31 . . . 16 . . . Terrain Rammed . | . . . . . . . . . . . . Walls Destroyed . | . . . . . . . . . . . . Machines Disabled . | . . . . . . . . . . . . Actions | -11 -10 -10 -9 -9 -9 -9 -6 -6 -5 -4 -4 --------- Run | Yrd Mat Min Mat Sto Rec Scr Fac Ext Fac Fac Upp Total 8531 | 43 741 592 533 920 624 1223 740 1286 450 1086 293 Wait 413 | . 65 1 13 42 . . 19 84 18 141 30 Move 7181 | 32 542 555 448 741 612 1192 660 984 390 789 236 Hop 2 | . . . . . . . 1 1 . . . Pick Up 74 | . 18 4 6 11 3 13 4 7 2 6 . Fast Attach 64 | 1 6 . 2 2 . 1 3 17 4 26 2 Attach 24 | . 1 . 2 2 . . 9 1 5 2 2 Detach 13 | . 1 . . . . . 3 1 3 1 4 Swap 116 | 2 14 9 12 26 2 4 5 21 3 18 . Drop 117 | 3 12 5 13 18 2 13 16 17 3 15 . Fire 221 | 5 81 18 37 62 5 . . 7 . 6 . Melee 199 | . . . . . . . 20 56 22 82 19 Ram . | . . . . . . . . . . . . Kick 1 | . . . . . . . . 1 . . . Crush 1 | . 1 . . . . . . . . . . Escape Stasis 9 | . . . . . . . . 9 . . . Rewire 80 | . . . . . . . . 80 . . . Trap . | . . . . . . . . . . . . Miscellaneous 16 | . . . . 16 . . . . . . . Route ------- -11/Scrapyard -10/Materials (discovered 2 exits: *Mat / [*Min]) -10/Mines (discovered 2 exits: *Mat x2) -9/Materials (discovered 6 exits: *Mat x3 / *Min x2 / *Sto) -9/Storage -9/Recycling (discovered 2 exits: [*Fac] / *Scr) -9/Scraptown (discovered 2 exits: *Fac x2) -6/Factory -6/Extension (discovered 3 exits: *Fac x2 / [*Cet]) -5/Factory -4/Factory (discovered 4 exits: *Res / *Upp x2 / Arm) -4/Upper Caves History --------- Turn | Location | Event 18 | -11/Scrapyard | Discovered new exit (range 3) 53 | -11/Scrapyard | Entered Materials 206 | -10/Materials | Discovered new exit (range 11) 320 | -10/Materials | Build established: Mutant 473 | -10/Materials | Repaired Sml. Laser 501 | -10/Materials | Repaired Lgt. Treads 683 | -10/Materials | Discovered new exit (range 10) 848 | -10/Materials | Core integrity fell below 50% 1022 | -10/Materials | Entered Mines 1117 | -10/Mines | Learned 8 Materials zone layouts 1134 | -10/Mines | Discovered new exit (range 10) 1218 | -10/Mines | Discovered new exit (range 9) 1340 | -10/Mines | Found a hidden stash of uninstalled traps 1387 | -10/Mines | Core integrity fell below 20% 1501 | -10/Mines | Deemed a non-threat by the Exiles lab entrance 1726 | -10/Mines | Entered Materials 1726 | -9/Materials | Accompanied by 1 ally 1726 | -9/Materials | Evolved 2 slots: Propulsion x1, Utility x1 1727 | -9/Materials | Identified exit to Storage 1727 | -9/Materials | Identified exit to Mines 1727 | -9/Materials | Identified exit to Materials 1731 | -9/Materials | Led the pair of lost Derelicts to an unsafe place 1770 | -9/Materials | Build established: Scavenger-Mutant 2055 | -9/Materials | Central database locked down 2218 | -9/Materials | Build established: Mutant 2244 | -9/Materials | Discovered exit to Materials (range 16) 2448 | -9/Materials | Entered Storage 2532 | -9/Storage | Met a pair of Derelict thieves 2612 | -9/Storage | Garrison activated, responded to threat 3248 | -9/Storage | First assault squad dispatched 3712 | -9/Storage | Used back door to open Recycling access 3712 | -9/Storage | Discovered new exit (range 5) 3827 | -9/Storage | Entered Recycling 4414 | -9/Recycling | Discovered new exit (range 15) 4568 | -9/Recycling | Scanned before Scraplab entrance 4585 | -9/Recycling | Entered Scraplab 4595 | -9/Recycling | Discovered new exit (range 3) 4598 | -9/Recycling | Entered Scraptown 4890 | -9/Scraptown | Discovered new exit (range 11) 4923 | -9/Scraptown | Visited TADAMA 4954 | -9/Scraptown | Visited Shadow of the Wyrm 5163 | -9/Scraptown | Visited SPCMW 5171 | -9/Scraptown | Visited CPS Storage 5189 | -9/Scraptown | Visited UFD Registry 5189 | -9/Scraptown | Registered with UFD as "Metamod" 5227 | -9/Scraptown | Visited Scrapoid Pod Storage 5252 | -9/Scraptown | Visited Botcube Research 5272 | -9/Scraptown | Visited Derelict Rescue Squad 5288 | -9/Scraptown | Received an X-ray algorithm 5301 | -9/Scraptown | Visited Curators Association 5313 | -9/Scraptown | Visited Supply Room 5335 | -9/Scraptown | Visited DA-N13 Charitable Foundation 5346 | -9/Scraptown | Found DCF Scrap (28 items) 5378 | -9/Scraptown | Visited Junk Cannon Lab 5504 | -9/Scraptown | Visited Science Guys 5534 | -9/Scraptown | Visited Sword Containment 5830 | -9/Scraptown | Found Prototype Slashing Weapon 5830 | -9/Scraptown | Identified Companion Sword 5926 | -9/Scraptown | Met Optimus 5926 | -9/Scraptown | Accepted into 0bPrime 5987 | -9/Scraptown | Discovered new exit (range 5) 5992 | -9/Scraptown | Entered Factory 5992 | -6/Factory | Evolved 6 slots: Propulsion x3, Utility x3 6374 | -6/Factory | Loaded intel: 8 recycling unit locations 6380 | -6/Factory | Discovered new exit (range 6) 6381 | -6/Factory | Identified exit to Extension 6381 | -6/Factory | Entered Extension 6440 | -6/Extension | Rescued a captive Derelict 6458 | -6/Extension | Lost 5 parts (1p4n) 6462 | -6/Extension | Energy Cycler disabled 6462 | -6/Extension | Rescued a captive Derelict 6462 | -6/Extension | Rescued a captive Derelict 6462 | -6/Extension | Rescued a captive Derelict 6462 | -6/Extension | Rescued a captive Derelict 6463 | -6/Extension | Rescued a captive Derelict 6464 | -6/Extension | Rescued a captive Derelict 6464 | -6/Extension | Rescued a captive Derelict 6464 | -6/Extension | Rescued a captive Derelict 6468 | -6/Extension | Rescued a captive Derelict 6482 | -6/Extension | Rescued a captive Derelict 6497 | -6/Extension | Spotted B-75 Beast 6581 | -6/Extension | Lost 3 allies 6693 | -6/Extension | Lost 3 allies 6866 | -6/Extension | Build established: Scavenger-Mutant 7003 | -6/Extension | Repaired Flexi-carbon Leg 7191 | -6/Extension | Spotted B-75 Beast 7193 | -6/Extension | Allies destroyed B-75 Beast 7210 | -6/Extension | Discovered new exit (range 16) 7227 | -6/Extension | Destroyed B-75 Beast 7247 | -6/Extension | Lost 11 allies 7311 | -6/Extension | Found Prototype Protection 7311 | -6/Extension | Identified Med. Regenerative Plating 7331 | -6/Extension | Extracted ID and sensor layout for unrecognized location from A7's data core 7356 | -6/Extension | Disrupted transfer network 7455 | -6/Extension | Loaded intel: 1 recycling unit location 7455 | -6/Extension | Learned location of Protoforge (-2) 7725 | -6/Extension | Discovered new exit (range 21) 7727 | -6/Extension | Discovered new exit (range 21) 7773 | -6/Extension | Disrupted transfer network 7776 | -6/Extension | Identified exit to Factory 7777 | -6/Extension | Entered Factory 7777 | -5/Factory | Accompanied by 2 allies 7777 | -5/Factory | Evolved 2 slots: Utility x2 7938 | -5/Factory | Discovered new exit (range 18) 8076 | -5/Factory | Loaded intel: 8 recycling unit locations 8113 | -5/Factory | Build established: Scavenger-Gladiator 8288 | -5/Factory | Lost 4 parts (1p2n1u) 8315 | -5/Factory | Identified exit to Factory 8341 | -5/Factory | Entered another Factory area 8341 | -4/Factory | Evolved 2 slots: Utility x2 8439 | -4/Factory | Identified exit to Upper Caves 8439 | -4/Factory | Identified exit to Armory 8633 | -4/Factory | Discovered new exit (range 11) 8645 | -4/Factory | Identified exit to Research 8913 | -4/Factory | Lost 3 parts (2n1u) 8997 | -4/Factory | Fabricated Hvy. Shield Leg (x1) 9193 | -4/Factory | Build established: Hacker-Gladiator 9287 | -4/Factory | Scrapoid reinforcements arrived 9407 | -4/Factory | Lost 3 allies 9564 | -4/Factory | System corruption reached 10% 9621 | -4/Factory | Lost 7 parts (1p2n4u) 9651 | -4/Factory | Build established: Scavenger-Gladiator 9660 | -4/Factory | Found Scrap Suit 9745 | -4/Factory | Entered Upper Caves 9760 | -4/Upper Caves | Learned 12 Research zone layouts 9974 | -4/Upper Caves | Lost 7 parts (1p5n1u) 10013 | -4/Upper Caves | Self-destructed Last Messages --------------- 09939_ Lgt. Nuclear Core fries itself beyond repair. 09943_ Myomer Leg destroyed. 09952_ System corrupted: Substantial component data lost. 09959_ Acquired 10 matter. 09965_ Destroyed Lgt. Nuclear Core. 09965_ S-27 Virus destroyed. Companion Sword: "You sure know how to make a sword happy." 09968_ Scrap Suit cannibalized VTOL Module to repair VTOL Module. 09969_ Discarded Scrap Suit. 09989_ Acquired Corrupted Lgt. Ion Engine. 09989_ Integrated Corrupted Lgt. Ion Engine (+10). 09989_ Lgt. Ion Engine destroyed. 09991_ Acquired 5 matter. 09997_ System corrupted: Matter fused (-8). 10012_ Med. Storage Unit destroyed. Map ----- +----------------------------------------------------+ | ?????????????????????????????????????????????????? | | ?????????????????????????????????????????????????? | | ?????????????????????????????????????????????????? | | ?????????????????????????????????????????????????? | | ?????????????????????????????????????????????????? | | ?????????????????????????????????????????????????? | | ?????????????????????????????????????????????????? | | ?????????????????????????????????????????????????? | | ?????????????????????????????????????????????????? | | ?????????????????????????????????????????????????? | | ?????????????????????????????????????????????????? | | ?????????????????????????????????????????????????? | | ?????????????????????????????????????????????????? | | ?????????????????????????????????????????????????? | | ????????????????????????????????????????????#????? | | ??????????????????????????????????????????? ????? | | ??????????????????????????????????????????? #????? | | ??????????????????????????????????????????? ##???? | | ??????????????????????????????####???????## #???? | | ?????????????????????????###?## ##????? #???? | | ????????????????????????## ### ##### #???# | | ????????????????????????# #???# | | ???????????# ?????????# ] #??## | | ???????# ### ?#???##!! # +#### #??#" | | ???????# ###/! #" "" " #??## | | ???????# @ #"" # #??#" | | ??????????????#### # T # #?## | | ?????????????????######### # " # #?# | | ??????????????????????#### # # # # | | ?????????????????????## # ## #? | | ?????????????????????# " "# #? #? | | ?????????????????????# #" " # ## #? | | ?????????????????????# #### #" ]# #? | | ?????????????????????# ???# ###### ## #? | | ?????????????????????# ????# #??? | | ?????????????????????# ????# #### | | ?????????????????????#?????# #### #### ## | | ???????????????????????????# s#??###??#### | | ?????????????????????????? #?????????# | | ????????????????????????? ????????# | | ???????????????????????? ## ????????# | | ??????????????????????? #??# ????????# ## | | ?????????????????????? ##????##????????## | | ?????????????????????#??????????????????# | | ????????????????????????????????????????# ## | | ??????????????????????????????????????? ## | | ??????????????????????????????????????## ## # | | ???????????????????????????????????????# ?## ## | | ???????????????????????????????????????# ??####? | | ???????????????????????????????????????# ??????? | +----------------------------------------------------+ Best States ------------- Heat Dissipation 62 Energy Generation 21 Energy Capacity 315 Matter Stores 300 Matter Capacity 300 Sight Range 22 Robot Scan Range 16 Terrain Scan Density 10 Armor Coverage 675 Phase Shifting 10 Evasion (%) 67 Targeting Accuracy 6 Melee Accuracy 8 Recoil Reduction 2 Offensive Hacking 32 Defensive Hacking 10 Authchip Count 2 Item Schematics ----------------- Cld. VTOL Module | -4/Factory | Hacked Jamming Amplifier | -4/Factory | Hacked Robot Schematics ------------------ None Fabricated ------------ Hvy. Shield Leg | x1 | -4/Factory | Preloaded Repaired ---------- Sml. Laser | 28% | -10/Materials Lgt. Treads | 37% | -10/Materials Flexi-carbon Leg | 11% | -6/Extension Studied --------- Flight Unit | -9/Materials | Hacked Alien Tech Used ----------------- None Achievements -------------- None Challenges ------------ None Game ------ Seed RocketForceRailcannon Manual? 0 Play Time 01:42:34 Cumulative 275.2 hours Start 2026.05.03 @ 08:52:38 End 2026.05.03 @ 10:44:22 Sessions 1 Manual Loads 0 Difficulty Rogue Special Mode None Game No. 146 Rogue 146 Adventurer 0 Explorer 0 Win Type - Total 9 Types 5/0/2/1/0/0/0/1/0/0 Lore% 76 Gallery% 67 Achievement% 59 Wizard Run 0 Options --------- Layout 2 ASCII 0 Keyboard 1 Movement Arrows Keybinds 0 Fullscreen 2 Font 24/Terminus Map View 50x44 Zoom Use 0% Tactical HUD 1 Map Filters NONE Filters NONE Steam 1 RUN: ca1b7ca8-4463-4570-bbeb-649ff4b07505